fUSD/lending_fUSD_20241015
["ID","MTS","AMOUNT","RATE_DAILY","PERIOD"]
[340277364,1728988249367,-500.0,0.00024999,7]
[340277365,1728988249375,-500.0,0.00024999,7]
[340277366,1728988249385,-500.0,0.00024999,7]
[340277367,1728988249394,-324.60416056,0.00024999,7]
[340277368,1728988249404,-151.0,0.00024999,7]
[340277369,1728988249413,-165058.36814654,0.00024999,5]
[340277370,1728988249423,-50000.0,0.00025,14]
[340277371,1728988249432,-50000.0,0.00025,13]
[340277372,1728988249444,-50000.0,0.00025,12]
[340277373,1728988249454,-50000.0,0.00025,11]
[340277374,1728988249465,-50000.0,0.00025,10]
[340277375,1728988249475,-6400.0,0.00025,2]
[340277376,1728988249485,-5829.08451922,0.00025,2]
[340277377,1728988249495,-39025315.31680492,0.00025,3]
[340277378,1728988249576,-329.1425,0.000248,2]
[340277379,1728988353863,153.70342623,0.000125,3]
[340277380,1728988396945,500.0,0.00026875,120]
[340277384,1728988713671,156.66,0.00010959,2]
[340277431,1728989431956,-801.0,0.00017683,2]
[340277432,1728989431966,-193.11,0.00018374,2]
[340277433,1728989431975,-802.20571201,0.00018568,2]
[340277434,1728989431986,-153.974255,0.00019739,2]
[340277435,1728989431999,-153.974255,0.00019739,2]
[340277436,1728989432008,-160.07672317,0.000198,2]
[340277437,1728989432017,-500.0,0.00020767,2]
[340277438,1728989432027,-500.0,0.00020767,2]
[340277439,1728989432037,-335.23,0.00021006,2]
[340277440,1728989432046,-150.99,0.00021006,2]
[340277441,1728989432056,-85.43410211,0.00021006,2]
[340277442,1728989432068,-1911.4887306,0.00021006,2]
[340277443,1728989432079,-494.79716729,0.00021006,2]
[340277444,1728989432089,-467.05283271,0.00021006,2]
[340277445,1728989432100,-408.48048678,0.00021006,2]
[340277446,1728989432112,-444.60668051,0.00021006,2]
[340277447,1728989432121,-150.99,0.00021006,2]
[340277448,1728989432130,-201.29748252,0.00021006,2]
[340277449,1728989432142,-689.86251748,0.00021006,2]
[340277450,1728989432152,-1180.28,0.000214,5]
[340277451,1728989432162,-849.44,0.000214,2]
[340277452,1728989432171,-499.99,0.000214,2]
[340277453,1728989432181,-1910.11,0.000214,2]
[340277454,1728989432191,-250.0,0.00022425,2]
[340277455,1728989432200,-250.0,0.00022619,2]
[340277456,1728989432210,-178.86,0.00022706,2]
[340277457,1728989432219,-167.85,0.00022715,30]
[340277458,1728989432228,-142.60748252,0.00022768,2]
[340277460,1728989432239,-107.39251748,0.00022768,2]
[340277462,1728989432252,-2492.60748252,0.00022771,2]
[340277464,1728989432265,-2618.21251748,0.00022771,2]
[340277465,1728989432274,-150.0,0.00022789,2]
[340277466,1728989432283,-150.0,0.00022805,2]
[340277467,1728989432292,-2751.0,0.00022806,2]
[340277468,1728989432301,-800.0,0.00022823,2]
[340277469,1728989432311,-180.33,0.00022962,2]
[340277470,1728989432320,-999.58,0.00023,2]
[340277471,1728989432330,-335.23,0.0002327,2]
[340277472,1728989432340,-499.72249718,0.000233,2]
[340277473,1728989432351,-200.0,0.00023593,2]
[340277474,1728989432363,-3000.0,0.000236,2]
[340277475,1728989432373,-501.88029257,0.00023625,2]
[340277476,1728989432384,-152.28,0.0002392,2]
[340277477,1728989432394,-204.0,0.0002405,2]
[340277478,1728989432404,-205.0,0.0002405,2]
[340277479,1728989432413,-1062.30169778,0.00024304,2]
[340277480,1728989432422,-1086.23997089,0.00024304,2]
[340277481,1728989432431,-1103.00947096,0.00024304,2]
[340277482,1728989432441,-999.58,0.00024325,2]
[340277483,1728989432451,-4197.80722454,0.000245,10]
[340277484,1728989432463,-475.4141956,0.000245,10]
[340277485,1728989432474,-1183.67728785,0.000245,10]
[340277486,1728989432485,-571.52115498,0.000245,10]
[340277492,1728989437909,-2549.55900004,0.000245,10]
[340277493,1728989437920,-303.16003,0.000245,10]
[340277494,1728989437932,-315.0,0.000245,10]
[340277495,1728989438095,-403.86110699,0.000245,10]
[340277496,1728989438105,-204.0,0.0002453,2]
[340277497,1728989438115,-104.57114892,0.0002453,2]
[340277498,1728989438126,-100.42885108,0.0002453,2]
[340277499,1728989438135,-1131.0,0.000247,2]
[340277500,1728989438145,-2310.89443099,0.000247,2]
[340277501,1728989438155,-381.83997,0.000247,2]
[340277502,1728989438167,-124.11928914,0.000247,2]
[340277503,1728989438176,-2816.85369011,0.00024722,2]
[340277504,1728989438186,-2816.85369011,0.00024744,2]
[340277505,1728989438195,-2816.85369011,0.00024767,2]
[340277506,1728989438204,-2816.85369011,0.00024789,2]
[340277507,1728989438214,-161.1487717,0.0002479,2]
[340277508,1728989438223,-849.08,0.0002479,3]
[340277509,1728989438233,-7136.0573,0.0002479,2]
[340277510,1728989438243,-754.36762999,0.00024799,2]
[340277511,1728989438256,-7265.7487,0.000248,2]
[340277512,1728989438265,-951.2035,0.000248,2]
[340277513,1728989438275,-2400.0,0.000248,2]
[340277514,1728989438284,-4174.0757,0.000248,2]
[340277516,1728989438294,-30732.78434873,0.000248,2]
[340277518,1728989438306,-7269.46392254,0.000248,2]
[340277521,1728989438317,-2457.94104147,0.000248,2]
[340277523,1728989438328,-16741.38379213,0.000248,2]
[340277525,1728989438339,-1605.98,0.000248,2]
[340277527,1728989438350,-386.22,0.000248,2]
[340277642,1728989440039,-1018.24056935,0.000248,2]
[340277643,1728989440051,-113132.60032578,0.000248,2]
[340277644,1728989440060,-5083.0,0.000248,8]
[340277645,1728989440072,-161.14877166,0.00024808,2]
[340277646,1728989440083,-2500.0,0.00024809,2]
[340277647,1728989440092,-509.31252619,0.0002481,7]
[340277648,1728989440101,-161.14877166,0.00024827,2]
[340277649,1728989440110,-167.828,0.00024831,8]
[340277650,1728989440119,-161.14877166,0.00024845,2]
[340277651,1728989440128,-161.14877166,0.00024863,2]
[340277652,1728989440137,-161.05298596,0.00024873,2]
[340277653,1728989440146,-641.20696685,0.00024873,2]
[340277654,1728989440155,-501.05221396,0.00024873,2]
[340277655,1728989440164,-20080.9031726,0.0002488,2]
[340277656,1728989440173,-7705.98147266,0.0002488,5]
[340277657,1728989440182,-161.14877166,0.00024882,2]
[340277658,1728989440192,-66832.9995,0.0002489,2]
[340277659,1728989440202,-23117.944418,0.0002489,5]
[340277660,1728989440211,-8794.7515,0.000249,2]
[340277661,1728989440220,-24661.3019,0.000249,2]
[340277662,1728989440229,-3878.5093,0.000249,2]
[340277663,1728989440238,-330.46893078,0.000249,2]
[340277664,1728989440248,-161.43347078,0.000249,2]
[340277665,1728989440257,-10000.0,0.000249,15]
[340277666,1728989440266,-215.0245226,0.000249,4]
[340277667,1728989440276,-161.14877166,0.000249,2]
[340277668,1728989440284,-703.1000072,0.000249,2]
[340277669,1728989440294,-7705.98147266,0.00024969,5]
[340277670,1728989440303,-349.22416671,0.00024969,2]
[340277671,1728989440313,-349.18077594,0.00024969,2]
[340277672,1728989440322,-386.68368483,0.00024969,2]
[340277673,1728989440331,-500.0,0.00024969,2]
[340277674,1728989440340,-500.0,0.00024969,2]
[340277675,1728989440350,-427.40264882,0.00024969,2]
[340277676,1728989440359,-7705.98147266,0.00024969,5]
[340277677,1728989440368,-77059.8147266,0.0002497,5]
[340277678,1728989440378,-158.58479244,0.0002497,2]
[340277679,1728989440387,-500.0,0.00024973,2]
[340277680,1728989440396,-15411.9629453,0.00024979,5]
[340277681,1728989440405,-23117.944418,0.0002498,5]
[340277682,1728989440415,-24337.2091616,0.0002498,5]
[340277683,1728989440424,-18117.20558592,0.0002498,5]
[340277697,1728989445984,-538.92440718,0.00024811,2]
[340277698,1728989446169,-558.55270691,0.00024811,2]
[340277700,1728989742820,155.22,0.00010959,2]
[340277703,1728990632084,-496.76425177,0.00011221,2]
[340277704,1728990632096,-521.44331218,0.00011221,2]
[340277705,1728990632123,-777.495996,0.00011221,2]
[340277706,1728990632135,-5779.27477475,0.00011221,2]
[340277707,1728990632146,-501.07831554,0.00011221,2]
[340277708,1728990632256,-428.54109963,0.00011221,2]
[340277709,1728990632265,-300.0,0.00019725,2]
[340277710,1728990632275,-1560.0,0.000212,3]
[340277711,1728990632285,-420.0,0.00021484,2]
[340277712,1728990632296,-333.04,0.00021486,2]
[340277713,1728990632305,-487.34138158,0.00021722,2]
[340277714,1728990632317,-323.6358353,0.00021722,2]
[340277715,1728990632328,-1703.61103245,0.00021722,2]
[340277716,1728990632340,-287.37338502,0.00021722,2]
[340277717,1728990632359,-2470.24297497,0.00021722,2]
[340277719,1728990632370,-5307.10818033,0.00021722,2]
[340277721,1728990632385,-2997.63485053,0.00021722,2]
[340277728,1728990638137,-2827.61695086,0.00021722,2]
[340277729,1728990638146,-860.55827342,0.00021722,2]
[340277730,1728990638156,-860.55827342,0.00022066,2]
[340277731,1728990638166,-451.2665023,0.00022409,2]
[340277732,1728990638178,-409.29177112,0.00022409,2]
[340277733,1728990638188,-104.9761984,0.00022508,2]
[340277734,1728990638200,-45.0238016,0.00022508,2]
[340277735,1728990638209,-150.081,0.00022509,2]
[340277736,1728990638219,-811.829,0.00022509,2]
[340277737,1728990638229,-325.12466462,0.00022509,2]
[340277738,1728990638240,-123.92933538,0.00022509,2]
[340277739,1728990638250,-560.273,0.00022509,2]
[340277740,1728990638259,-203.29766462,0.00022509,2]
[340277741,1728990638410,-353.72733538,0.00022509,2]
[340277742,1728990638420,-580.24730915,0.00022509,2]
[340277743,1728990638442,-599.055,0.00022509,2]
[340277750,1728990640492,-733.95369085,0.00022509,2]
[340277751,1728990640501,-3366.509,0.00022509,2]
[340277752,1728990640510,-822.174,0.00022509,2]
[340277753,1728990640520,-499.99,0.00022509,2]
[340277754,1728990640529,-5883.0,0.00022509,2]
[340277755,1728990640539,-150.664,0.00022509,2]
[340277756,1728990640550,-13270.87538369,0.00022509,2]
[340277775,1728990647755,-256.12461631,0.00022509,2]
[340277776,1728990647765,-1150.0,0.00022509,2]
[340277777,1728990647775,-1083.0,0.00022509,2]
[340277778,1728990647784,-1014.66,0.00023,2]
[340277779,1728990647794,-168.82,0.00023344,2]
[340277780,1728990647803,-250.0,0.00023344,2]
[340277781,1728990647815,-23890.0,0.00023376,2]
[340277782,1728990647825,-498.0,0.00023401,2]
[340277783,1728990647835,-154.38,0.00023409,2]
[340277784,1728990647844,-200.0,0.00023518,2]
[340277785,1728990647854,-640.0,0.00023555,2]
[340277786,1728990647864,-150.27,0.00023571,2]
[340277787,1728990647874,-3000.0,0.000236,2]
[340277788,1728990647884,-250.0,0.00023629,2]
[340277789,1728990647894,-167.85,0.0002365,30]
[340277790,1728990647903,-333.04,0.0002375,2]
[340277791,1728990647912,-360.0,0.00023958,2]
[340277792,1728990647923,-1014.66,0.0002413,2]
[340277793,1728990647932,-250.74155853,0.00024687,2]
[340277794,1728990647941,-172.47,0.00024839,8]
[340277795,1728990647951,-150.0,0.0002488,7]
[340277796,1728990647961,-1398.86754347,0.00024888,2]
[340277797,1728990647971,-1398.86754344,0.00024889,2]
[340277798,1728990647981,-618.9975,0.0002489,2]
[340277799,1728990647991,-12791.8337,0.0002489,2]
[340277800,1728990648001,-4280.9349,0.0002489,2]
[340277801,1728990648011,-3123.4399,0.0002489,2]
[340277802,1728990648021,-1398.86754344,0.00024891,2]
[340277803,1728990648030,-1398.86754344,0.00024892,2]
[340277804,1728990648039,-1398.86754344,0.00024893,2]
[340277805,1728990648049,-1398.86754344,0.00024895,2]
[340277806,1728990648059,-1398.86754344,0.00024896,2]
[340277807,1728990648069,-1398.86754344,0.00024897,2]
[340277808,1728990648079,-7500.0,0.00024898,2]
[340277809,1728990648089,-1398.86754344,0.00024899,2]
[340277810,1728990648099,-1398.86754344,0.000249,2]
[340277811,1728990648109,-5008.98,0.00024978,2]
[340277812,1728990648118,-5008.98,0.00024978,2]
[340277813,1728990648128,-5008.98,0.00024978,2]
[340277814,1728990648139,-5008.98,0.00024978,2]
[340277815,1728990648149,-158.58479245,0.0002498,2]
[340277816,1728990648159,-5008.98,0.0002498,2]
[340277817,1728990648169,-1657.48929236,0.0002498,2]
[340277818,1728990648179,-19039.3098332,0.00024988,5]
[340277819,1728990648189,-190393.098332,0.00024988,5]
[340277820,1728990648199,-132615.255478,0.00024988,5]
[340277821,1728990648208,-12055.9323162,0.00024989,5]
[340277822,1728990648218,-500.0,0.00024989,7]
[340277823,1728990648228,-500.0,0.00024989,7]
[340277824,1728990648237,-500.0,0.00024989,7]
[340277825,1728990648247,-513.93697441,0.00024989,7]
[340277826,1728990648256,-123552.53133189,0.00024989,6]
[340277827,1728990648266,-120559.323162,0.0002499,5]
[340277828,1728990648275,-48223.7292648,0.0002499,5]
[340277829,1728990648285,-221.37623739,0.00024996,2]
[340277830,1728990648294,-2500.0,0.00024997,2]
[340277831,1728990648304,-2500.0,0.00024997,2]
[340277832,1728990648315,-2500.0,0.00024997,2]
[340277833,1728990648324,-221.37623739,0.00024997,2]
[340277834,1728990648334,-500.0,0.00024998,7]
[340277835,1728990648343,-196.40044584,0.00024998,2]
[340277836,1728990648352,-500.0,0.00024998,2]
[340277837,1728990648362,-289.51899624,0.00024999,2]
[340277838,1728990648371,-3735.37593086,0.00024999,2]
[340277839,1728990648380,-500.0,0.00024999,7]
[340277840,1728990648389,-500.0,0.00024999,7]
[340277841,1728990648398,-225.68054611,0.00024999,7]
[340277842,1728990648408,-375.0,0.00024999,2]
[340277843,1728990648421,-2500.0,0.00024999,2]
[340277844,1728990648430,-2500.0,0.00024999,2]
[340277845,1728990648439,-2500.0,0.00024999,2]
[340277846,1728990648449,-726.99442946,0.00024999,2]
[340277847,1728990648459,-150.0,0.00024999,2]
[340277848,1728990648469,-50000.0,0.00025,10]
[340277849,1728990648478,-50000.0,0.00025,11]
[340277850,1728990648487,-50000.0,0.00025,12]
[340277851,1728990648497,-50000.0,0.00025,13]
[340277852,1728990648506,-50000.0,0.00025,14]
[340277853,1728990648517,-2456.38644689,0.00025,2]
[340277854,1728990648526,-5708534.52431847,0.00025,3]
[340277855,1728990648626,-5687.919,0.00025,3]
[340277856,1728990648641,-3152.33092129,0.00025,3]
[340277857,1728990758586,157.18,0.00010959,2]
[340277858,1728991508535,3340142.33630867,0.00011,2]
[340277859,1728991530080,382.09390524,0.000101,2]
[340277860,1728991535023,230.05175873,0.0001,2]
[340277861,1728991551768,250.74155853,0.00010945,2]
[340277862,1728991562658,161.34056342,9e-05,2]
[340277863,1728991638939,205.0,9.8e-05,2]
[340277864,1728991643042,246.38403238,0.000101,2]
[340277865,1728991678289,363.97598723,0.0001,2]
[340277866,1728991681396,1037902.44936096,0.00011,2]
[340277868,1728991716350,212.17808591,0.0001,2]
[340277882,1728991829399,156.66,0.00010959,2]
[340277896,1728991835906,-906.44317113,0.000129,4]
[340277897,1728991835917,-1300.0,0.00013,4]
[340277898,1728991835928,-1160.159679,0.00016302,2]
[340277899,1728991835938,-150.0,0.00016385,2]
[340277900,1728991835953,-1003.61680035,0.00016385,2]
[340277901,1728991835963,-52899.87619351,0.00016386,2]
[340277902,1728991835972,-376.42,0.0001856,2]
[340277903,1728991835983,-255.71,0.0001856,2]
[340277904,1728991835992,-2028.73,0.0001856,2]
[340277905,1728991836002,-513.84,0.0001856,2]
[340277906,1728991836012,-500.0,0.000195,2]
[340277907,1728991836023,-500.0,0.000195,2]
[340277908,1728991836032,-299.99,0.000195,7]
[340277909,1728991836041,-175.304973,0.00019739,2]
[340277910,1728991836051,-499.99,0.00019739,2]
[340277911,1728991836060,-1504.67,0.00019739,2]
[340277912,1728991836070,-150.99,0.00019739,2]
[340277913,1728991836080,-999.99,0.00019739,2]
[340277914,1728991836090,-923.21,0.000198,2]
[340277915,1728991836100,-155.0138486,0.000198,2]
[340277916,1728991836109,-2307.03683869,0.0002,2]
[340277917,1728991836120,-530.7097579,0.0002,5]
[340277918,1728991836131,-187.27,0.00020084,2]
[340277919,1728991836141,-13365.14244716,0.00020605,2]
[340277920,1728991836151,-499.99,0.00020605,2]
[340277921,1728991836160,-192.25,0.0002061,2]
[340277922,1728991836170,-200.0,0.00020713,2]
[340277923,1728991836181,-175.304973,0.00020726,2]
[340277924,1728991836191,-2193.25053484,0.000208,2]
[340277925,1728991836200,-376.42,0.00020824,2]
[340277926,1728991836210,-5008.98,0.0002087,2]
[340277929,1728991836220,-176821.15329687,0.0002088,2]
[340277930,1728991836229,-277.69,0.000209,2]
[340277932,1728991836239,-250.0,0.00020925,2]
[340277934,1728991836248,-980.50255554,0.0002099,2]
[340277936,1728991836258,-250.0,0.00021095,2]
[340277938,1728991836267,-256.27,0.00021127,2]
[340277940,1728991836277,-155.81,0.00021231,2]
[340277942,1728991836287,-2193.25053478,0.00021256,2]
[340277944,1728991836297,-958.0,0.000215,3]
[340277946,1728991836306,-2193.25053478,0.00021711,2]
[340277948,1728991836315,-9815.75604083,0.00021834,2]
[340277950,1728991836328,-17877.38398277,0.00021834,2]
[340277952,1728991836337,-372.37,0.00021856,2]
[340277954,1728991836347,-2500.0,0.00021917,2]
[340277956,1728991836356,-161.29,0.00021918,2]
[340277958,1728991836366,-152.0,0.00021966,3]
[340277960,1728991836377,-338.78,0.00022,4]
[340277962,1728991836387,-2193.25053478,0.00022167,2]
[340277964,1728991836397,-36634.0,0.00022283,2]
[340277966,1728991836406,-155.81,0.00022292,2]
[340277968,1728991836416,-5008.98,0.00022598,2]
[340277970,1728991836425,-39136.3591014,0.00022608,5]
[340277972,1728991836435,-4810.77638099,0.00022608,2]
[340277975,1728991836448,-198.20361901,0.00022608,2]
[340277977,1728991836458,-3387.90905099,0.00022608,2]
[340277979,1728991836469,-1621.07094901,0.00022608,2]
[340277981,1728991836479,-10881.85023992,0.00022618,2]
[340277983,1728991836490,-1415.43626018,0.00022618,2]
[340277985,1728991836502,-9659.8,0.00022618,2]
[340277988,1728991836514,-83096.28942967,0.00022618,2]
[340277990,1728991836524,-2193.25053478,0.00022622,2]
[340277992,1728991836533,-13045.4530338,0.00022899,5]
[340277993,1728991836542,-3356.0,0.00022909,2]
[340277995,1728991836551,-1908.0,0.00022909,2]
[340277997,1728991836561,-809.0,0.00022909,2]
[340277999,1728991836570,-1083.0,0.00022909,2]
[340278001,1728991836579,-5883.0,0.00022909,2]
[340278003,1728991836588,-833.08,0.00023,7]
[340278005,1728991836598,-464.553252,0.00023,2]
[340278007,1728991836607,-1007.18,0.00023,2]
[340278009,1728991836617,-2193.25053478,0.00023078,2]
[340278011,1728991836628,-376.42,0.00023088,2]
[340278012,1728991836637,-343.03310676,0.00023173,2]
[340278014,1728991836647,-4348.4843446,0.00023177,5]
[340278016,1728991836656,-5008.98,0.00023177,2]
[340278018,1728991836666,-21742.421723,0.00023187,5]
[340278020,1728991836675,-158.58479245,0.00023187,2]
[340278022,1728991836684,-47472.52823985,0.00023197,2]
[340278024,1728991836694,-1000.0,0.00023206,2]
[340278026,1728991836703,-4348.4843446,0.0002329,5]
[340278028,1728991836713,-2500.0,0.00023299,2]
[340278030,1728991836722,-3000.0,0.000233,2]
[340278032,1728991836731,-155.81,0.00023354,2]
[340278034,1728991836741,-152.0,0.00023445,4]
[340278036,1728991836752,-2193.25053478,0.00023533,2]
[340278038,1728991836761,-2193.25053478,0.00023989,2]
[340278040,1728991836770,-366.79,0.00024,2]
[340278042,1728991836780,-500.0,0.00024,2]
[340278044,1728991836789,-500.0,0.00024,2]
[340278046,1728991836798,-500.0,0.00024,2]
[340278048,1728991836808,-500.0,0.00024,2]
[340278050,1728991836818,-500.0,0.00024,2]
[340278052,1728991836827,-500.0,0.00024,2]
[340278054,1728991836836,-500.0,0.00024,2]
[340278056,1728991836846,-248.6,0.00024096,2]
[340278058,1728991836855,-17393.9373784,0.00024139,5]
[340278060,1728991836864,-151.57,0.00024139,2]
[340278062,1728991836877,-4348.4843446,0.00024405,5]
[340278064,1728991836886,-155.81,0.00024415,2]
[340278066,1728991836896,-2193.25053478,0.00024444,2]
[340278067,1728991836906,-4348.4843446,0.00024678,5]
[340278069,1728991836915,-7500.0,0.00024688,2]
[340278071,1728991836926,-1007.18,0.00024735,2]
[340278074,1728991836935,-150.0,0.00024747,2]
[340278075,1728991836948,-4348.4843446,0.00024768,5]
[340278077,1728991836959,-8696.9686892,0.00024778,5]
[340278079,1728991836968,-4348.4843446,0.0002478,5]
[340278081,1728991836978,-221.37623739,0.00024785,2]
[340278083,1728991836989,-197.269,0.00024788,2]
[340278085,1728991836999,-430.0889,0.00024788,2]
[340278087,1728991837009,-297.9512,0.00024788,2]
[340278088,1728991837020,-14600.1045,0.00024788,2]
[340278089,1728991837031,-150.0,0.00024792,2]
[340278090,1728991837040,-3497.970885,0.000248,2]
[340278091,1728991837049,-4241.44155004,0.00024805,5]
[340278095,1728991838278,-995.53903981,0.00022909,2]
[340278097,1728991838290,-1993.661294,0.00022909,2]
[340278100,1728991838408,-903.1,0.00022909,2]
[340278101,1728991838420,-283.14249064,0.00022909,2]
[340278106,1728991843651,-349.68500002,0.00022909,2]
[340278111,1728991843987,-4648.71917553,0.00022909,2]
[340278112,1728991843998,-1150.0,0.00023254,2]
[340278113,1728991844008,-107.04279456,0.00024805,5]
[340278114,1728991844017,-4348.4843446,0.00024858,5]
[340278115,1728991844028,-500.0,0.00024867,2]
[340278116,1728991844038,-552.5796456,0.00024867,2]
[340278117,1728991844047,-4348.4843446,0.00024868,5]
[340278118,1728991844057,-795.76,0.00024868,3]
[340278119,1728991844066,-52181.8121352,0.00024868,5]
[340278120,1728991844075,-61149.6773151,0.00024868,5]
[340278121,1728991844085,-174.018,0.00024873,8]
[340278122,1728991844094,-1570.66490585,0.00024873,3]
[340278123,1728991844104,-4348.4843446,0.00024877,5]
[340278124,1728991844114,-91724.5159726,0.00024878,5]
[340278125,1728991844123,-10191.6128858,0.0002488,5]
[340278126,1728991844140,-2500.0,0.00024886,2]
[340278127,1728991844150,-5990.4525378,0.00024887,2]
[340278128,1728991844296,-500.0,0.00024887,7]
[340278129,1728991844306,-150.0,0.00024887,2]
[340278130,1728991844315,-49444.85007131,0.00024888,2]
[340278131,1728991844326,-31425.00000002,0.00024888,2]
[340278135,1728991846341,-555.0,0.00023254,2]
[340278136,1728991846351,-300.0,0.000239,8]
[340278137,1728991846360,-700.0,0.00024,8]
[340278138,1728991846369,-5004.7,0.00024888,2]
[340278139,1728991846475,-631.61167072,0.00024888,2]
[340278142,1728992574680,337908.0,0.00027,60]
[340278143,1728992597869,300.0,0.00027,60]
[340278144,1728992598045,326.0,0.00027,60]
[340278145,1728992919633,155.22,0.00010959,2]
[340278150,1728993031448,-166.61,0.000209,2]
[340278151,1728993031458,-355.74,0.00021212,2]
[340278152,1728993031468,-3000.0,0.000225,2]
[340278153,1728993031478,-930.28,0.00022948,2]
[340278154,1728993031487,-1003.56,0.00023,2]
[340278155,1728993031496,-250.0,0.00023043,2]
[340278156,1728993031506,-530.09,0.00023141,2]
[340278157,1728993031515,-250.0,0.00023151,2]
[340278158,1728993031524,-1271.86,0.00023151,2]
[340278159,1728993031533,-499.99,0.00023151,2]
[340278160,1728993031542,-2899.3,0.00023151,2]
[340278161,1728993031551,-150.0,0.00023165,2]
[340278162,1728993031561,-150.0,0.0002317,2]
[340278163,1728993031571,-155.81,0.00023171,2]
[340278164,1728993031580,-25084.61,0.00023171,2]
[340278165,1728993031589,-8216.16,0.00023171,2]
[340278166,1728993031599,-499.84,0.000232,7]
[340278167,1728993031609,-161.29,0.00023222,2]
[340278168,1728993031619,-935.0,0.00023299,2]
[340278169,1728993031628,-170.15,0.00023299,2]
[340278170,1728993031639,-3378.649,0.00023299,2]
[340278171,1728993031649,-6115.129,0.00023299,2]
[340278172,1728993031659,-1150.0,0.00023299,2]
[340278173,1728993031669,-150.0,0.00023299,2]
[340278174,1728993031678,-355.74,0.00023476,2]
[340278175,1728993031688,-500.0,0.00023762,2]
[340278176,1728993031698,-500.0,0.00023762,2]
[340278177,1728993031707,-500.0,0.00023762,2]
[340278178,1728993031716,-500.0,0.00023762,2]
[340278179,1728993031726,-500.0,0.00023762,2]
[340278180,1728993031736,-500.0,0.00023762,2]
[340278181,1728993031745,-500.0,0.00023762,2]
[340278182,1728993031754,-500.0,0.00023762,2]
[340278183,1728993031764,-1000.0,0.00023763,2]
[340278184,1728993031774,-1003.56,0.0002386,2]
[340278185,1728993031783,-300.0,0.000239,8]
[340278186,1728993031793,-600.0,0.00024,8]
[340278187,1728993031802,-900.0,0.000241,8]
[340278188,1728993031813,-1200.0,0.000242,8]
[340278189,1728993031822,-1500.0,0.000243,8]
[340278190,1728993031831,-1062.1962947,0.0002439,2]
[340278191,1728993031841,-1129.2816807,0.0002439,2]
[340278192,1728993031850,-300.0,0.000244,8]
[340278193,1728993031860,-300.0,0.000245,8]
[340278194,1728993031870,-200.0,0.000245,2]
[340278195,1728993031880,-1658.5827,0.0002457,2]
[340278196,1728993031890,-1057.7782,0.0002457,2]
[340278197,1728993031900,-7566.8656,0.0002457,2]
[340278198,1728993031910,-14303.46537097,0.0002457,2]
[340278199,1728993031923,-628.135,0.0002457,2]
[340278200,1728993031935,-136.83452903,0.0002457,2]
[340278201,1728993031946,-113.16547097,0.0002457,2]
[340278204,1728993037654,-1082.0,0.00023299,2]
[340278205,1728993037664,-150.0,0.00023299,2]
[340278206,1728993037674,-2386.83452903,0.0002457,2]
[340278207,1728993037683,-272.19229675,0.00024579,2]
[340278208,1728993037693,-2184.9913,0.0002458,2]
[340278209,1728993037703,-1000.0,0.0002458,2]
[340278210,1728993037712,-7500.0,0.0002458,2]
[340278211,1728993037721,-300.0,0.000246,8]
[340278212,1728993037731,-272.1922967,0.00024615,2]
[340278213,1728993037740,-272.1922967,0.0002465,2]
[340278214,1728993037750,-500.0,0.00024657,7]
[340278215,1728993037759,-500.0,0.00024657,7]
[340278216,1728993037769,-592.78985736,0.00024657,7]
[340278217,1728993037778,-22394.35106125,0.0002467,5]
[340278218,1728993037790,-1312.64,0.0002467,5]
[340278219,1728993037877,-15429.36804005,0.0002467,5]
[340278220,1728993037887,-18344.9031946,0.0002467,5]
[340278221,1728993037898,-500.0,0.00024679,2]